[Event "Early-Titled-Tuesday-Blitz-April-23-2024"]
[Site "Chess.com"]
[Date "2024.04.23"]
[Round "2"]
[White "m_ezat"]
[Black "MatthewG-p4p"]
[Result "0-1"]
[WhiteElo "2610"]
[BlackElo "2895"]
[TimeControl "180+1"]
[EndTime "8:19:08 PDT"]
[Termination "MatthewG-p4p won by checkmate"]

1. d4 {[%clk 0:03:00.9]} 1... Nf6 {[%clk 0:02:59.4]} 2. c4 {[%clk 0:03:00.9]}
2... c5 {[%clk 0:03:00.1]} 3. d5 {[%clk 0:03:00.7]} 3... e6 {[%clk 0:03:00.8]}
4. Nc3 {[%clk 0:03:00.4]} 4... exd5 {[%clk 0:03:01.6]} 5. cxd5 {[%clk
0:03:01.3]} 5... d6 {[%clk 0:03:02.5]} 6. e4 {[%clk 0:03:01.7]} 6... g6 {[%clk
0:03:03.4]} 7. f4 {[%clk 0:03:02.2]} 7... Bg7 {[%clk 0:03:03.8]} 8. Bb5+ {[%clk
0:03:02.1]} 8... Nfd7 {[%clk 0:03:04.4]} 9. Be2 {[%clk 0:03:02.7]} 9... Qh4+
{[%clk 0:03:03.6]} 10. g3 {[%clk 0:03:02.5]} 10... Qe7 {[%clk 0:03:04.4]} 11.
Nf3 {[%clk 0:02:59.6]} 11... Nb6 {[%clk 0:03:04.8]} 12. e5 {[%clk 0:02:48.8]}
12... O-O {[%clk 0:02:50]} 13. O-O {[%clk 0:02:47.1]} 13... Bg4 {[%clk
0:02:37.6]} 14. a4 {[%clk 0:02:39.4]} 14... Bxf3 {[%clk 0:02:13.2]} 15. Bxf3
{[%clk 0:02:35.4]} 15... dxe5 {[%clk 0:02:13.7]} 16. d6 {[%clk 0:02:35.1]} 16...
Qd7 {[%clk 0:02:13.4]} 17. a5 {[%clk 0:02:33.5]} 17... Nc4 {[%clk 0:02:05.7]}
18. Qd5 {[%clk 0:01:44]} 18... e4 {[%clk 0:02:04.8]} 19. Nxe4 {[%clk 0:01:35.3]}
19... Qe6 {[%clk 0:01:24.5]} 20. Qxe6 {[%clk 0:01:03.8]} 20... fxe6 {[%clk
0:01:15.4]} 21. Ng5 {[%clk 0:00:59.1]} 21... Nxd6 {[%clk 0:00:54.9]} 22. Nxe6
{[%clk 0:00:55]} 22... Rc8 {[%clk 0:00:53]} 23. Rd1 {[%clk 0:00:43.2]} 23...
Bd4+ {[%clk 0:00:37.7]} 24. Nxd4 {[%clk 0:00:36.2]} 24... cxd4 {[%clk
0:00:38.6]} 25. Rxd4 {[%clk 0:00:36]} 25... Nf5 {[%clk 0:00:39.2]} 26. Bxb7
{[%clk 0:00:33.5]} 26... Nxd4 {[%clk 0:00:37]} 27. Bxc8 {[%clk 0:00:33]} 27...
Nbc6 {[%clk 0:00:29.8]} 28. Bb7 {[%clk 0:00:33.2]} 28... Rb8 {[%clk 0:00:27.7]}
29. Bxc6 {[%clk 0:00:32.5]} 29... Nxc6 {[%clk 0:00:28.6]} 30. Ra3 {[%clk
0:00:27.5]} 30... a6 {[%clk 0:00:27.2]} 31. Rc3 {[%clk 0:00:25.5]} 31... Nxa5
{[%clk 0:00:27.3]} 32. Rc7 {[%clk 0:00:21.3]} 32... Rb3 {[%clk 0:00:17.8]} 33.
Bd2 {[%clk 0:00:20.7]} 33... Nb7 {[%clk 0:00:15.6]} 34. Bc3 {[%clk 0:00:21]}
34... Nd6 {[%clk 0:00:16]} 35. Rg7+ {[%clk 0:00:21.3]} 35... Kf8 {[%clk
0:00:16.6]} 36. Rxh7 {[%clk 0:00:21.5]} 36... Ne4 {[%clk 0:00:12.4]} 37. Ra7
{[%clk 0:00:21.8]} 37... Rb6 {[%clk 0:00:10.8]} 38. Kg2 {[%clk 0:00:20.8]} 38...
Rc6 {[%clk 0:00:10.7]} 39. h3 {[%clk 0:00:20.2]} 39... Kg8 {[%clk 0:00:07.8]}
40. g4 {[%clk 0:00:19.3]} 40... Nc5 {[%clk 0:00:07.8]} 41. Kg3 {[%clk
0:00:17.6]} 41... Ne4+ {[%clk 0:00:07.7]} 42. Kh4 {[%clk 0:00:17.4]} 42... Kf8
{[%clk 0:00:05.7]} 43. Bd4 {[%clk 0:00:16.7]} 43... Rd6 {[%clk 0:00:05.5]} 44.
Be5 {[%clk 0:00:16.1]} 44... Rc6 {[%clk 0:00:06.2]} 45. Bc3 {[%clk 0:00:15.8]}
45... Rb6 {[%clk 0:00:05.7]} 46. Rc7 {[%clk 0:00:13]} 46... Re6 {[%clk
0:00:05.7]} 47. Rb7 {[%clk 0:00:12.1]} 47... Rc6 {[%clk 0:00:05.3]} 48. Bd4
{[%clk 0:00:11.5]} 48... Rd6 {[%clk 0:00:05.3]} 49. Bc3 {[%clk 0:00:10.8]} 49...
Rc6 {[%clk 0:00:05.9]} 50. Ba5 {[%clk 0:00:11.1]} 50... Re6 {[%clk 0:00:05.9]}
51. Rb6 {[%clk 0:00:11.4]} 51... Rxb6 {[%clk 0:00:03.6]} 52. Bxb6 {[%clk
0:00:10.9]} 52... Nd2 {[%clk 0:00:04.5]} 53. Kg5 {[%clk 0:00:10]} 53... Kf7
{[%clk 0:00:04.6]} 54. Bc5 {[%clk 0:00:08.1]} 54... Ne4+ {[%clk 0:00:04.8]} 55.
Kh6 {[%clk 0:00:08.4]} 55... Nxc5 {[%clk 0:00:05.7]} 56. g5 {[%clk 0:00:08.4]}
56... Ne6 {[%clk 0:00:05.4]} 57. f5 {[%clk 0:00:06.7]} 57... gxf5 {[%clk
0:00:06.3]} 58. g6+ {[%clk 0:00:07.5]} 58... Kf6 {[%clk 0:00:06.2]} 59. h4
{[%clk 0:00:08.3]} 59... f4 {[%clk 0:00:06.4]} 60. h5 {[%clk 0:00:07.8]} 60...
f3 {[%clk 0:00:06.9]} 61. g7 {[%clk 0:00:07.7]} 61... Nxg7 {[%clk 0:00:06.9]}
62. Kh7 {[%clk 0:00:08.6]} 62... Nxh5 {[%clk 0:00:07.3]} 63. Kh6 {[%clk
0:00:08.2]} 63... Nf4 {[%clk 0:00:07.9]} 64. Kh7 {[%clk 0:00:08.1]} 64... f2
{[%clk 0:00:08.8]} 65. Kg8 {[%clk 0:00:09]} 65... f1=Q {[%clk 0:00:09.7]} 66.
Kf8 {[%clk 0:00:09.9]} 66... Qd3 {[%clk 0:00:08.2]} 67. Ke8 {[%clk 0:00:09.7]}
67... Qd6 {[%clk 0:00:08.6]} 68. b4 {[%clk 0:00:08.2]} 68... Qe7# {[%clk
0:00:09.5]} 0-1

[Event "Early-Titled-Tuesday-Blitz-April-23-2024"]
[Site "Chess.com"]
[Date "2024.04.23"]
[Round "2"]
[White "ChinguunSu"]
[Black "superchess02"]
[Result "1-0"]
[WhiteElo "2630"]
[BlackElo "2898"]
[TimeControl "180+1"]
[EndTime "8:19:11 PDT"]
[Termination "ChinguunSu won by checkmate"]

1. e4 {[%clk 0:03:00.9]} 1... c5 {[%clk 0:02:57.8]} 2. Nf3 {[%clk 0:02:59.4]}
2... d6 {[%clk 0:02:57.7]} 3. d4 {[%clk 0:02:58.3]} 3... cxd4 {[%clk 0:02:58.6]}
4. Nxd4 {[%clk 0:02:58.3]} 4... Nf6 {[%clk 0:02:59.1]} 5. Nc3 {[%clk 0:02:58.5]}
5... a6 {[%clk 0:02:59.6]} 6. Nb3 {[%clk 0:02:57]} 6... Nc6 {[%clk 0:02:53.6]}
7. f3 {[%clk 0:02:55.2]} 7... b5 {[%clk 0:02:51.8]} 8. Be3 {[%clk 0:02:55.4]}
8... Bb7 {[%clk 0:02:51.6]} 9. a3 {[%clk 0:02:55.6]} 9... e6 {[%clk 0:02:51.3]}
10. Qd2 {[%clk 0:02:54.9]} 10... Rc8 {[%clk 0:02:50.1]} 11. g4 {[%clk
0:02:54.6]} 11... Nd7 {[%clk 0:02:50.1]} 12. f4 {[%clk 0:02:53.5]} 12... b4
{[%clk 0:02:37.2]} 13. axb4 {[%clk 0:02:52]} 13... Nxb4 {[%clk 0:02:38.1]} 14.
Bg2 {[%clk 0:02:51.2]} 14... Qh4+ {[%clk 0:02:32.4]} 15. Bf2 {[%clk 0:02:38.6]}
15... Qxg4 {[%clk 0:02:32.6]} 16. Rg1 {[%clk 0:02:36.3]} 16... Qh5 {[%clk
0:02:32.5]} 17. Nd4 {[%clk 0:02:25.2]} 17... e5 {[%clk 0:01:47.9]} 18. Bf3
{[%clk 0:02:22.5]} 18... Qxh2 {[%clk 0:01:45.1]} 19. Nf5 {[%clk 0:02:18.5]}
19... Qxf4 {[%clk 0:01:38.8]} 20. Qe2 {[%clk 0:02:17.2]} 20... Nxc2+ {[%clk
0:01:20.4]} 21. Qxc2 {[%clk 0:02:13.9]} 21... Qxf3 {[%clk 0:01:20.9]} 22. Rg3
{[%clk 0:02:03.3]} 22... Qh5 {[%clk 0:00:47.6]} 23. Rxg7 {[%clk 0:01:58.5]}
23... d5 {[%clk 0:00:26.1]} 24. exd5 {[%clk 0:01:46]} 24... Bxd5 {[%clk
0:00:26.2]} 25. Rxa6 {[%clk 0:01:38.2]} 25... e4 {[%clk 0:00:12.7]} 26. Nxd5
{[%clk 0:01:32.2]} 26... Qh1+ {[%clk 0:00:11.9]} 27. Rg1 {[%clk 0:01:30.4]}
27... Qxg1+ {[%clk 0:00:12]} 28. Bxg1 {[%clk 0:01:30.4]} 28... Rxc2 {[%clk
0:00:12.7]} 29. Ra8+ {[%clk 0:01:30.1]} 29... Nb8 {[%clk 0:00:13.4]} 30. Bb6
{[%clk 0:01:21.6]} 30... Kd7 {[%clk 0:00:12.3]} 31. Kd1 {[%clk 0:01:11.6]} 31...
Rh2 {[%clk 0:00:09.2]} 32. Bd4 {[%clk 0:01:10.4]} 32... Ke6 {[%clk 0:00:06.4]}
33. Rxb8 {[%clk 0:01:07.8]} 33... Rh1+ {[%clk 0:00:04.9]} 34. Ke2 {[%clk
0:01:05.4]} 34... Rg8 {[%clk 0:00:05.6]} 35. Nde3 {[%clk 0:01:03.3]} 35... Rh2+
{[%clk 0:00:05]} 36. Kf1 {[%clk 0:01:03.4]} 36... Rh5 {[%clk 0:00:03.2]} 37.
Rb6+ {[%clk 0:01:02.5]} 37... Kd7 {[%clk 0:00:03.9]} 38. Rb5 {[%clk 0:00:46.6]}
38... Rg6 {[%clk 0:00:04.5]} 39. Rb7+ {[%clk 0:00:37.3]} 39... Kc6 {[%clk
0:00:05.1]} 40. Rxf7 {[%clk 0:00:36.8]} 40... Bh6 {[%clk 0:00:05.5]} 41. Ne7+
{[%clk 0:00:35.2]} 41... Kd6 {[%clk 0:00:06.2]} 42. Nxg6 {[%clk 0:00:35.2]}
42... hxg6 {[%clk 0:00:07.1]} 43. Rf6+ {[%clk 0:00:35.3]} 43... Ke7 {[%clk
0:00:06.9]} 44. Rxg6 {[%clk 0:00:35.3]} 44... Kf7 {[%clk 0:00:07.4]} 45. Rf6+
{[%clk 0:00:34.9]} 45... Ke8 {[%clk 0:00:07.7]} 46. Re6+ {[%clk 0:00:34.5]}
46... Kd7 {[%clk 0:00:08.3]} 47. Rxe4 {[%clk 0:00:34.9]} 47... Rb5 {[%clk
0:00:09.2]} 48. Ke2 {[%clk 0:00:33.4]} 48... Rb4 {[%clk 0:00:08.1]} 49. Kd3
{[%clk 0:00:29]} 49... Bf8 {[%clk 0:00:06.5]} 50. Bc3 {[%clk 0:00:28.6]} 50...
Rb8 {[%clk 0:00:07.2]} 51. Rd4+ {[%clk 0:00:27.7]} 51... Kc6 {[%clk 0:00:07.7]}
52. Nc4 {[%clk 0:00:27.4]} 52... Bg7 {[%clk 0:00:08.2]} 53. Rd6+ {[%clk
0:00:25.3]} 53... Kc5 {[%clk 0:00:08.3]} 54. b4+ {[%clk 0:00:22.8]} 54... Kb5
{[%clk 0:00:07.4]} 55. Bxg7 {[%clk 0:00:21]} 55... Ka4 {[%clk 0:00:07.4]} 56.
Bc3 {[%clk 0:00:20.4]} 56... Rc8 {[%clk 0:00:07.4]} 57. Rd5 {[%clk 0:00:19]}
57... Kb3 {[%clk 0:00:05.9]} 58. Nd2+ {[%clk 0:00:17.5]} 58... Ka4 {[%clk
0:00:04.5]} 59. Ra5# {[%clk 0:00:17.5]} 1-0

[Event "Early-Titled-Tuesday-Blitz-April-23-2024"]
[Site "Chess.com"]
[Date "2024.04.23"]
[Round "2"]
[White "JeFumeDesClopes"]
[Black "K_A_S_T_O_R"]
[Result "1/2-1/2"]
[WhiteElo "2604"]
[BlackElo "2851"]
[TimeControl "180+1"]
[EndTime "8:19:12 PDT"]
[Termination "Game drawn - insufficient material"]

1. e4 {[%clk 0:03:00.9]} 1... c5 {[%clk 0:02:59.4]} 2. Nc3 {[%clk 0:03:01.1]}
2... e6 {[%clk 0:02:51.2]} 3. Nge2 {[%clk 0:03:01.1]} 3... a6 {[%clk 0:02:46.3]}
4. g3 {[%clk 0:03:00.8]} 4... d6 {[%clk 0:02:45.8]} 5. Bg2 {[%clk 0:03:01.4]}
5... Nc6 {[%clk 0:02:46.2]} 6. d4 {[%clk 0:03:01.5]} 6... cxd4 {[%clk
0:02:45.9]} 7. Nxd4 {[%clk 0:03:02.4]} 7... Bd7 {[%clk 0:02:46.3]} 8. O-O {[%clk
0:03:01.9]} 8... Nf6 {[%clk 0:02:46.8]} 9. Be3 {[%clk 0:03:01.8]} 9... Be7
{[%clk 0:02:46]} 10. h3 {[%clk 0:02:58.8]} 10... Ne5 {[%clk 0:02:42.6]} 11. b3
{[%clk 0:02:55.7]} 11... Rc8 {[%clk 0:02:41.8]} 12. Qd2 {[%clk 0:02:56.1]} 12...
Qc7 {[%clk 0:02:38.4]} 13. Nce2 {[%clk 0:02:53.7]} 13... O-O {[%clk 0:02:32.2]}
14. a4 {[%clk 0:02:47.2]} 14... Rfd8 {[%clk 0:02:27.5]} 15. c4 {[%clk
0:02:44.9]} 15... Nc6 {[%clk 0:02:15.9]} 16. Rac1 {[%clk 0:02:39]} 16... Be8
{[%clk 0:01:53.4]} 17. Nc3 {[%clk 0:02:34.1]} 17... Qb8 {[%clk 0:01:52.6]} 18.
Rfd1 {[%clk 0:02:23.1]} 18... Nd7 {[%clk 0:01:51]} 19. Bg5 {[%clk 0:02:15.1]}
19... Nf6 {[%clk 0:01:45.7]} 20. Qe2 {[%clk 0:02:06.1]} 20... h6 {[%clk
0:01:44.9]} 21. Be3 {[%clk 0:02:05.6]} 21... Nd7 {[%clk 0:01:42.6]} 22. f4
{[%clk 0:02:05.6]} 22... Nc5 {[%clk 0:01:41]} 23. Nxc6 {[%clk 0:01:56.3]} 23...
Bxc6 {[%clk 0:01:40.3]} 24. Qc2 {[%clk 0:01:52.1]} 24... b6 {[%clk 0:01:37.3]}
25. b4 {[%clk 0:01:51.1]} 25... Nd7 {[%clk 0:01:35.8]} 26. Qf2 {[%clk
0:01:44.6]} 26... Ba8 {[%clk 0:01:30.8]} 27. Ne2 {[%clk 0:01:36.8]} 27... a5
{[%clk 0:01:26.3]} 28. bxa5 {[%clk 0:01:32.1]} 28... bxa5 {[%clk 0:01:24.9]} 29.
Nd4 {[%clk 0:01:32.6]} 29... Nc5 {[%clk 0:01:18.2]} 30. Qc2 {[%clk 0:01:24.8]}
30... Bb7 {[%clk 0:01:14.5]} 31. Nb5 {[%clk 0:01:14.5]} 31... Qa8 {[%clk
0:01:14.7]} 32. e5 {[%clk 0:01:07.4]} 32... dxe5 {[%clk 0:01:11.8]} 33. fxe5
{[%clk 0:00:57.2]} 33... Bxg2 {[%clk 0:01:10.5]} 34. Qxg2 {[%clk 0:00:58.1]}
34... Qxg2+ {[%clk 0:01:09.4]} 35. Kxg2 {[%clk 0:00:59]} 35... Nxa4 {[%clk
0:01:09.3]} 36. Rxd8+ {[%clk 0:00:57.2]} 36... Rxd8 {[%clk 0:00:58.4]} 37. Ra1
{[%clk 0:00:56.4]} 37... Rd3 {[%clk 0:00:47.7]} 38. Bf2 {[%clk 0:00:23.2]} 38...
Nc5 {[%clk 0:00:41.5]} 39. Rxa5 {[%clk 0:00:21.4]} 39... Ne4 {[%clk 0:00:41.3]}
40. Ra8+ {[%clk 0:00:20.6]} 40... Kh7 {[%clk 0:00:36.1]} 41. Bb6 {[%clk
0:00:20.4]} 41... Rd2+ {[%clk 0:00:33]} 42. Kf3 {[%clk 0:00:19]} 42... Ng5+
{[%clk 0:00:32.5]} 43. Ke3 {[%clk 0:00:18.9]} 43... Rc2 {[%clk 0:00:28.6]} 44.
h4 {[%clk 0:00:19.4]} 44... Nh3 {[%clk 0:00:22.8]} 45. Nd6 {[%clk 0:00:17.9]}
45... Nf2 {[%clk 0:00:19.5]} 46. c5 {[%clk 0:00:13.7]} 46... Ng4+ {[%clk
0:00:16.6]} 47. Kd3 {[%clk 0:00:13.8]} 47... Rc1 {[%clk 0:00:16.9]} 48. Nxf7
{[%clk 0:00:14.1]} 48... Kg6 {[%clk 0:00:15.9]} 49. Nd6 {[%clk 0:00:09.8]} 49...
Nxe5+ {[%clk 0:00:15.2]} 50. Ke4 {[%clk 0:00:10.5]} 50... Nd7 {[%clk 0:00:14.3]}
51. Ra7 {[%clk 0:00:06]} 51... Nxb6 {[%clk 0:00:09.2]} 52. Rxe7 {[%clk
0:00:06.6]} 52... Rxc5 {[%clk 0:00:08.1]} 53. Rxe6+ {[%clk 0:00:07.1]} 53... Kh7
{[%clk 0:00:08.7]} 54. Nf5 {[%clk 0:00:06.4]} 54... Rc4+ {[%clk 0:00:06]} 55.
Kf3 {[%clk 0:00:06]} 55... Rc3+ {[%clk 0:00:04.7]} 56. Kg2 {[%clk 0:00:05.9]}
56... Nd5 {[%clk 0:00:04.5]} 57. h5 {[%clk 0:00:04.9]} 57... Nf6 {[%clk
0:00:03.5]} 58. Re7 {[%clk 0:00:02.9]} 58... Nxh5 {[%clk 0:00:04.4]} 59. g4
{[%clk 0:00:03.2]} 59... Rc2+ {[%clk 0:00:04.9]} 60. Kf3 {[%clk 0:00:03.4]}
60... Nf6 {[%clk 0:00:05.1]} 61. Rxg7+ {[%clk 0:00:03]} 61... Kh8 {[%clk
0:00:06]} 62. Rg6 {[%clk 0:00:03.5]} 62... Rc3+ {[%clk 0:00:06.9]} 63. Kf4
{[%clk 0:00:03.8]} 63... Nd5+ {[%clk 0:00:07.1]} 64. Ke5 {[%clk 0:00:04.5]}
64... Ne3 {[%clk 0:00:07.2]} 65. Rxh6+ {[%clk 0:00:05.2]} 65... Kg8 {[%clk
0:00:07.8]} 66. Rh4 {[%clk 0:00:05.2]} 66... Nxg4+ {[%clk 0:00:07.3]} 67. Rxg4+
{[%clk 0:00:05.2]} 67... Kf7 {[%clk 0:00:07.8]} 68. Rg5 {[%clk 0:00:06.1]} 68...
Rc5+ {[%clk 0:00:07.1]} 69. Kf4 {[%clk 0:00:06.6]} 69... Rc4+ {[%clk 0:00:07.1]}
70. Kg3 {[%clk 0:00:07.2]} 70... Kf6 {[%clk 0:00:07.2]} 71. Rh5 {[%clk
0:00:07.9]} 71... Kg6 {[%clk 0:00:07.7]} 72. Rh4 {[%clk 0:00:07.8]} 72... Rxh4
{[%clk 0:00:06.9]} 73. Nxh4+ {[%clk 0:00:07.6]} 1/2-1/2

[Event "Early-Titled-Tuesday-Blitz-April-23-2024"]
[Site "Chess.com"]
[Date "2024.04.23"]
[Round "2"]
[White "Raskolnikov6"]
[Black "ChessSwole"]
[Result "0-1"]
[WhiteElo "2398"]
[BlackElo "2715"]
[TimeControl "180+1"]
[EndTime "8:19:18 PDT"]
[Termination "ChessSwole won on time"]

1. d4 {[%clk 0:02:59.1]} 1... d5 {[%clk 0:02:58.9]} 2. c4 {[%clk 0:02:59.1]}
2... e6 {[%clk 0:02:59.1]} 3. Nc3 {[%clk 0:02:58.8]} 3... Nf6 {[%clk 0:02:59.4]}
4. cxd5 {[%clk 0:02:59.2]} 4... Nxd5 {[%clk 0:03:00.3]} 5. e4 {[%clk 0:02:57]}
5... Nxc3 {[%clk 0:03:00.4]} 6. bxc3 {[%clk 0:02:57.9]} 6... c5 {[%clk
0:03:00.3]} 7. Nf3 {[%clk 0:02:58]} 7... cxd4 {[%clk 0:03:00.7]} 8. cxd4 {[%clk
0:02:55.3]} 8... Bb4+ {[%clk 0:03:01.1]} 9. Bd2 {[%clk 0:02:56.2]} 9... Bxd2+
{[%clk 0:03:01.7]} 10. Qxd2 {[%clk 0:02:57.1]} 10... O-O {[%clk 0:03:01.8]} 11.
Bc4 {[%clk 0:02:57]} 11... b6 {[%clk 0:03:01.6]} 12. O-O {[%clk 0:02:57.3]}
12... Bb7 {[%clk 0:03:01.6]} 13. Rfe1 {[%clk 0:02:57.4]} 13... Nd7 {[%clk
0:03:01.5]} 14. Rad1 {[%clk 0:02:57.9]} 14... Rc8 {[%clk 0:03:01.5]} 15. Bb3
{[%clk 0:02:58.2]} 15... Re8 {[%clk 0:03:01.5]} 16. h3 {[%clk 0:02:53]} 16...
Qf6 {[%clk 0:03:00.5]} 17. a4 {[%clk 0:02:43.3]} 17... a5 {[%clk 0:02:51.3]} 18.
Bc2 {[%clk 0:02:16.9]} 18... h6 {[%clk 0:02:32.9]} 19. Bd3 {[%clk 0:02:14.3]}
19... Bc6 {[%clk 0:02:12.2]} 20. Qa2 {[%clk 0:02:08.3]} 20... Qf4 {[%clk
0:02:04.6]} 21. Rb1 {[%clk 0:02:03.6]} 21... Nf6 {[%clk 0:01:44.6]} 22. Qd2
{[%clk 0:00:59.5]} 22... Qxd2 {[%clk 0:01:37.2]} 23. Nxd2 {[%clk 0:00:59.5]}
23... Red8 {[%clk 0:01:37.9]} 24. Nf3 {[%clk 0:00:55]} 24... Rb8 {[%clk
0:01:22.8]} 25. Ra1 {[%clk 0:00:47.4]} 25... b5 {[%clk 0:01:03.9]} 26. axb5
{[%clk 0:00:40.8]} 26... Bxb5 {[%clk 0:01:04.8]} 27. Bxb5 {[%clk 0:00:34.7]}
27... Rxb5 {[%clk 0:01:05.7]} 28. Ra4 {[%clk 0:00:33.1]} 28... Nd7 {[%clk
0:00:51.8]} 29. Rea1 {[%clk 0:00:31.7]} 29... Ra8 {[%clk 0:00:52]} 30. R4a3
{[%clk 0:00:13.7]} 30... Nb6 {[%clk 0:00:50.7]} 31. Kf1 {[%clk 0:00:13.5]} 31...
a4 {[%clk 0:00:47.7]} 32. Nd2 {[%clk 0:00:11]} 32... Rb4 {[%clk 0:00:40.2]} 33.
Rd3 {[%clk 0:00:08.1]} 33... Rd8 {[%clk 0:00:38.8]} 34. d5 {[%clk 0:00:06]}
34... exd5 {[%clk 0:00:37.3]} 35. exd5 {[%clk 0:00:06.1]} 35... Rxd5 {[%clk
0:00:36.2]} 36. Rxd5 {[%clk 0:00:04.3]} 36... Nxd5 {[%clk 0:00:37.1]} 37. Ke2
{[%clk 0:00:04.8]} 37... Nf4+ {[%clk 0:00:31.2]} 38. Kf3 {[%clk 0:00:04.6]}
38... g5 {[%clk 0:00:31.5]} 39. h4 {[%clk 0:00:04.2]} 39... Kg7 {[%clk
0:00:28.4]} 40. hxg5 {[%clk 0:00:04.3]} 40... hxg5 {[%clk 0:00:29.3]} 41. g3
{[%clk 0:00:04.4]} 41... Nd3 {[%clk 0:00:28.7]} 42. Ke3 {[%clk 0:00:04]} 42...
Ne5 {[%clk 0:00:26.6]} 43. Nf1 {[%clk 0:00:02]} 43... Kg6 {[%clk 0:00:20.7]} 44.
Nd2 {[%clk 0:00:02.5]} 44... g4 {[%clk 0:00:19.1]} 45. Ne4 {[%clk 0:00:02.7]}
45... a3 {[%clk 0:00:18.1]} 46. Nc3 {[%clk 0:00:02.7]} 46... Rb3 {[%clk
0:00:17.5]} 47. Kd4 {[%clk 0:00:03.2]} 47... Nc6+ {[%clk 0:00:17.9]} 48. Kc4
{[%clk 0:00:03.3]} 48... Na5+ {[%clk 0:00:18]} 49. Kd4 {[%clk 0:00:03.8]} 49...
f5 {[%clk 0:00:17.4]} 50. Kd3 {[%clk 0:00:03.5]} 50... Kg5 {[%clk 0:00:16.8]}
51. Kd4 {[%clk 0:00:04.4]} 51... Rb2 {[%clk 0:00:16.2]} 52. Rxa3 {[%clk
0:00:03.9]} 52... Nc6+ {[%clk 0:00:14.8]} 53. Kc5 {[%clk 0:00:04]} 53... Ne5
{[%clk 0:00:14.7]} 54. Ra8 {[%clk 0:00:04.7]} 54... Nd3+ {[%clk 0:00:14.8]} 55.
Kc4 {[%clk 0:00:05]} 55... Nxf2 {[%clk 0:00:15.7]} 56. Rg8+ {[%clk 0:00:04.6]}
56... Kf6 {[%clk 0:00:15.5]} 57. Nd5+ {[%clk 0:00:04.2]} 57... Ke5 {[%clk
0:00:15]} 58. Nf4 {[%clk 0:00:04.3]} 58... Ne4 {[%clk 0:00:14.5]} 59. Re8+
{[%clk 0:00:04.4]} 59... Kd6 {[%clk 0:00:15.2]} 60. Rd8+ {[%clk 0:00:04.7]}
60... Ke7 {[%clk 0:00:15.2]} 61. Ra8 {[%clk 0:00:04.6]} 61... Nxg3 {[%clk
0:00:15.3]} 62. Ra7+ {[%clk 0:00:04.4]} 62... Kf6 {[%clk 0:00:15.2]} 63. Nd5+
{[%clk 0:00:04.8]} 63... Ke5 {[%clk 0:00:15]} 64. Re7+ {[%clk 0:00:04.8]} 64...
Kd6 {[%clk 0:00:15.6]} 65. Rf7 {[%clk 0:00:04]} 65... Rc2+ {[%clk 0:00:15]} 66.
Kd3 {[%clk 0:00:03.4]} 66... Rc5 {[%clk 0:00:14.6]} 67. Ne3 {[%clk 0:00:02.8]}
67... Ke6 {[%clk 0:00:13.1]} 68. Ra7 {[%clk 0:00:02.7]} 68... Rc6 {[%clk
0:00:12.8]} 69. Ra8 {[%clk 0:00:01.8]} 69... Rd6+ {[%clk 0:00:12.1]} 70. Kc3
{[%clk 0:00:01.4]} 70... Ne4+ {[%clk 0:00:12.3]} 71. Kc2 {[%clk 0:00:01.5]}
71... Nf6 {[%clk 0:00:11.7]} 0-1